fUST/lending_fUST_20240225
["ID","MTS","AMOUNT","RATE_DAILY","PERIOD"]
[315109608,1708830639379,-643.45165925,0.00019178,2]
[315109609,1708830639391,-1391.79,0.00019178,2]
[315109610,1708830639400,-500.0,0.00019178,2]
[315109611,1708830639410,-502.24533247,0.00019178,2]
[315109612,1708830639419,-500.0,0.00019178,2]
[315109613,1708830639428,-1090.06,0.00019178,2]
[315109614,1708830639437,-500.0,0.00019178,2]
[315109615,1708830639446,-500.0,0.00019178,2]
[315109616,1708830639455,-500.0,0.00019178,2]
[315109617,1708830639464,-500.0,0.00019178,2]
[315109618,1708830639474,-1774.35,0.00019178,2]
[315109619,1708830639483,-500.0,0.00019178,2]
[315109620,1708830639491,-500.0,0.00019178,2]
[315109621,1708830639500,-500.0,0.00019178,2]
[315109622,1708830639509,-500.0,0.00019178,2]
[315109623,1708830639518,-500.0,0.00019178,2]
[315109624,1708830639526,-8709.57,0.00019178,2]
[315109625,1708830639535,-539.4,0.00019178,2]
[315109626,1708830639544,-500.0,0.00019178,2]
[315109627,1708830639553,-500.0,0.00019178,2]
[315109628,1708830639561,-500.0,0.00019178,2]
[315109629,1708830639570,-1288.87,0.00019178,2]
[315109630,1708830639579,-500.0,0.00019178,2]
[315109631,1708830639588,-500.0,0.00019178,2]
[315109632,1708830639597,-500.0,0.00019178,2]
[315109633,1708830639606,-308.92970751,0.00019178,2]
[315109634,1708830639615,-2151.98,0.00019178,2]
[315109635,1708830639624,-501.20084694,0.00019178,2]
[315109636,1708830639633,-1197.32,0.00019178,2]
[315109637,1708830639642,-500.0,0.00019178,2]
[315109638,1708830639652,-500.0,0.00019178,2]
[315109639,1708830639661,-500.0,0.00019178,2]
[315109640,1708830639670,-500.0,0.00019178,2]
[315109641,1708830639679,-500.73557833,0.00019178,2]
[315109642,1708830639689,-10740.27,0.00019178,2]
[315109643,1708830639699,-500.0,0.00019178,2]
[315109644,1708830639708,-500.0,0.00019178,2]
[315109645,1708830639718,-500.0,0.00019178,2]
[315109646,1708830639727,-500.0,0.00019178,2]
[315109647,1708830639737,-500.0,0.00019178,2]
[315109648,1708830639746,-500.0,0.00019178,2]
[315109649,1708830639755,-1609.43,0.00019178,2]
[315109650,1708830639765,-500.0,0.00019178,2]
[315109651,1708830639776,-513.53288139,0.00019178,2]
[315109652,1708830639785,-500.0,0.00019178,2]
[315109653,1708830639795,-500.98965267,0.00019178,2]
[315109654,1708830639804,-503.94726218,0.00019178,2]
[315109655,1708830639814,-500.0,0.00019178,2]
[315109656,1708830639825,-500.0,0.00019178,2]
[315109657,1708830639834,-500.0,0.00019178,2]
[315109658,1708830639843,-500.0,0.00019178,2]
[315109659,1708830639854,-584.59362957,0.00019178,2]
[315109660,1708830639864,-500.0,0.00019178,2]
[315109661,1708830639874,-500.0,0.00019178,2]
[315109662,1708830639883,-500.0,0.00019178,2]
[315109663,1708830639893,-500.0,0.00019178,2]
[315109664,1708830639902,-408.92108843,0.00019178,2]
[315109665,1708830640007,-231.37028455,0.00019178,2]
[315109666,1708830640119,-500.0,0.00019178,2]
[315109667,1708830640129,-500.42437072,0.00019178,2]
[315109668,1708830640139,-500.0,0.00019178,2]
[315109669,1708830640148,-500.0,0.00019178,2]
[315109670,1708830640157,-500.49507386,0.00019178,2]
[315109671,1708830640166,-500.72157887,0.00019178,2]
[315109672,1708830640175,-500.62885476,0.00019178,2]
[315109673,1708830640183,-501.97,0.00019178,2]
[315109674,1708830640193,-1000.0,0.00019178,2]
[315109675,1708830640202,-500.0,0.00019178,2]
[315109676,1708830640211,-500.0,0.00019178,2]
[315109677,1708830640220,-500.0,0.00019178,2]
[315109678,1708830640230,-500.0,0.00019178,2]
[315109679,1708830640239,-480.3429519,0.00019178,2]
[315109680,1708830640249,-355.28600445,0.00019178,2]
[315109681,1708830640260,-500.53058882,0.00019178,2]
[315109682,1708830640270,-500.0,0.00019178,2]
[315109683,1708830640279,-500.0,0.00019178,2]
[315109684,1708830640288,-500.0,0.00019178,2]
[315109685,1708830640297,-500.82343001,0.00019178,2]
[315109686,1708830640306,-500.0,0.00019178,2]
[315109687,1708830640318,-482.96851465,0.00019178,2]
[315109688,1708830640327,-500.50211,0.00019178,2]
[315109689,1708830640336,-500.0,0.00019178,2]
[315109690,1708830640345,-500.0,0.00019178,2]
[315109691,1708830640355,-500.0,0.00019178,2]
[315109692,1708830640365,-500.0,0.00019178,2]
[315109693,1708830640377,-500.0,0.00019178,2]
[315109694,1708830640386,-500.0,0.00019178,2]
[315109695,1708830640396,-6004.66,0.00019178,2]
[315109696,1708830640405,-500.0,0.00019178,2]
[315109697,1708830640414,-710.89,0.00019178,2]
[315109698,1708830640424,-500.0,0.00019178,2]
[315109699,1708830640434,-500.0,0.00019178,2]
[315109700,1708830640443,-500.0,0.00019178,2]
[315109701,1708830640454,-500.0,0.00019178,2]
[315109702,1708830640464,-500.0,0.00019178,2]
[315109703,1708830640473,-500.0,0.00019178,2]
[315109704,1708830640482,-500.0,0.00019178,2]
[315109705,1708830640491,-500.0,0.00019178,2]
[315109706,1708830640500,-500.0,0.00019178,2]
[315109707,1708830640510,-500.0,0.00019178,2]
[315109708,1708830640519,-500.0,0.00019178,2]
[315109709,1708830640529,-2742.19,0.00019178,2]
[315109710,1708830640539,-500.0,0.00019178,2]
[315109711,1708830640548,-500.0,0.00019178,2]
[315109712,1708830640557,-515.28596672,0.00019178,2]
[315109713,1708830640566,-500.0,0.00019178,2]
[315109714,1708830640575,-847.94,0.00019178,2]
[315109715,1708830640584,-500.38903503,0.00019178,2]
[315109716,1708830640594,-500.0,0.00019178,2]
[315109717,1708830640604,-500.0,0.00019178,2]
[315109718,1708830640614,-500.0,0.00019178,2]
[315109719,1708830640623,-500.0,0.00019178,2]
[315109720,1708830640633,-556.58939169,0.00019178,2]
[315109721,1708830640644,-650.34,0.00019178,2]
[315109722,1708830640653,-3905.99,0.00019178,2]
[315109723,1708830640666,-500.0,0.00019178,2]
[315109724,1708830640676,-1282.91,0.00019178,2]
[315109725,1708830640685,-183.137522,0.00019178,2]
[315109726,1708830640696,-166.666666,0.00019178,2]
[315109727,1708830640705,-500.0,0.00019187,2]
[315109728,1708830640714,-500.0,0.00019242,2]
[315109729,1708830640723,-178.0676437,0.00019284,2]
[315109730,1708830640733,-500.0,0.00019296,2]
[315109731,1708830640743,-506.68,0.00019351,2]
[315109732,1708830640752,-506.68,0.00019351,2]
[315109733,1708830640762,-506.68,0.00019351,2]
[315109734,1708830640772,-500.0,0.00019351,2]
[315109735,1708830640783,-500.0,0.00019406,2]
[315109736,1708830640792,-194.48778112,0.00019451,2]
[315109737,1708830640801,-506.68,0.00019451,2]
[315109738,1708830640812,-506.68,0.00019451,2]
[315109739,1708830640822,-506.68,0.00019451,2]
[315109740,1708830640831,-506.68,0.00019451,2]
[315109741,1708830640840,-500.0,0.00019452,2]
[315109742,1708830640849,-500.0,0.00019452,2]
[315109743,1708830640858,-500.0,0.00019452,2]
[315109744,1708830640868,-500.0,0.00019452,2]
[315109745,1708830640877,-500.0,0.00019452,2]
[315109746,1708830640887,-500.0,0.00019452,2]
[315109747,1708830640896,-500.0,0.00019452,2]
[315109748,1708830640905,-500.0,0.00019452,2]
[315109749,1708830640915,-832.26,0.00019452,2]
[315109750,1708830640925,-500.0,0.00019452,2]
[315109751,1708830640935,-728.52,0.00019452,2]
[315109752,1708830640945,-483.33143822,0.00019452,2]
[315109753,1708830640955,-1765.36,0.00019452,2]
[315109754,1708830640964,-500.0,0.00019452,2]
[315109755,1708830640973,-578.48338892,0.00019452,2]
[315109756,1708830640982,-500.0,0.00019452,2]
[315109757,1708830640991,-500.0,0.00019452,2]
[315109758,1708830640999,-210.99889998,0.00019452,2]
[315109759,1708830641009,-500.0,0.00019452,2]
[315109760,1708830641018,-586.84,0.00019452,2]
[315109761,1708830641028,-453.90931351,0.00019452,2]
[315109762,1708830641036,-500.0,0.00019452,2]
[315109763,1708830641045,-158.76788744,0.00019452,2]
[315109764,1708830641055,-500.0,0.00019452,2]
[315109765,1708830641066,-500.0,0.00019452,2]
[315109766,1708830641076,-500.0,0.00019452,2]
[315109767,1708830641085,-500.0,0.00019452,2]
[315109768,1708830641095,-500.0,0.00019452,2]
[315109769,1708830641105,-500.0,0.00019452,2]
[315109770,1708830641115,-500.0,0.00019452,2]
[315109771,1708830641124,-500.0,0.00019452,2]
[315109772,1708830641133,-809.54,0.00019452,2]
[315109773,1708830641144,-500.0,0.00019452,2]
[315109774,1708830641153,-395.3420921,0.00019452,2]
[315109775,1708830641162,-500.0,0.00019452,2]
[315109776,1708830641171,-500.0,0.00019452,2]
[315109777,1708830641181,-500.0,0.00019452,2]
[315109778,1708830641190,-515.66855619,0.00019452,2]
[315109779,1708830641199,-500.0,0.00019452,2]
[315109780,1708830641208,-502.02734652,0.00019452,2]
[315109781,1708830641217,-500.0,0.00019452,2]
[315109782,1708830641226,-500.0,0.00019452,2]
[315109783,1708830641235,-501.74987648,0.00019452,2]
[315109784,1708830641244,-2198.37,0.00019452,2]
[315109785,1708830641253,-500.0,0.00019452,2]
[315109786,1708830641263,-501.73593943,0.00019452,2]
[315109787,1708830641272,-500.0,0.00019452,2]
[315109788,1708830641283,-500.31919451,0.00019452,2]
[315109789,1708830641292,-1070.78,0.00019452,2]
[315109790,1708830641302,-502.14780362,0.00019452,2]
[315109791,1708830641311,-504.14013285,0.00019452,2]
[315109792,1708830641320,-2051.23,0.00019452,2]
[315109793,1708830641329,-500.0,0.00019452,2]
[315109794,1708830641338,-500.0,0.00019452,2]
[315109795,1708830641347,-500.0,0.00019452,2]
[315109796,1708830641358,-500.0,0.00019452,2]
[315109797,1708830641366,-500.0,0.00019452,2]
[315109798,1708830641377,-500.0,0.00019452,2]
[315109799,1708830641387,-1186.34,0.00019452,2]
[315109800,1708830641397,-500.0,0.00019452,2]
[315109801,1708830641406,-151.0,0.00019452,2]
[315109802,1708830641415,-502.19618459,0.00019452,2]
[315109803,1708830641424,-500.0,0.00019452,2]
[315109804,1708830641433,-6753.06,0.00019452,2]
[315109805,1708830641442,-173.72154512,0.00019452,2]
[315109806,1708830641451,-500.0,0.00019452,2]
[315109807,1708830641461,-500.0,0.00019452,2]
[315109808,1708830641472,-354.10599002,0.00019452,2]
[315109809,1708830641481,-1862.38,0.00019452,2]
[315109810,1708830641491,-501.52053868,0.00019452,2]
[315109811,1708830641500,-502.42303561,0.00019452,2]
[315109812,1708830641510,-500.0,0.00019452,2]
[315109813,1708830641519,-1064.96,0.00019452,2]
[315109814,1708830641534,-1457.52,0.00019452,2]
[315109815,1708830641543,-1391.79,0.00019452,2]
[315109816,1708830641552,-504.65686755,0.00019452,2]
[315109817,1708830641562,-1090.06,0.00019452,2]
[315109818,1708830641571,-392.00976435,0.00019452,2]
[315109819,1708830641580,-500.0,0.00019452,2]
[315109820,1708830641590,-500.0,0.00019452,2]
[315109821,1708830641599,-1774.35,0.00019452,2]
[315109822,1708830641608,-500.0,0.00019452,2]
[315109823,1708830641617,-500.0,0.00019452,2]
[315109824,1708830641626,-500.0,0.00019452,2]
[315109825,1708830641636,-500.0,0.00019452,2]
[315109826,1708830641644,-8709.57,0.00019452,2]
[315109827,1708830641654,-539.4,0.00019452,2]
[315109828,1708830641663,-500.0,0.00019452,2]
[315109829,1708830641672,-500.0,0.00019452,2]
[315109830,1708830641682,-1288.87,0.00019452,2]
[315109831,1708830641691,-500.0,0.00019452,2]
[315109832,1708830641700,-500.0,0.00019452,2]
[315109833,1708830641710,-2151.98,0.00019452,2]
[315109834,1708830641719,-1197.32,0.00019452,2]
[315109835,1708830641729,-501.91934061,0.00019452,2]
[315109836,1708830641738,-10740.27,0.00019452,2]
[315109837,1708830641748,-500.0,0.00019452,2]
[315109838,1708830641757,-500.0,0.00019452,2]
[315109839,1708830641767,-500.0,0.00019452,2]
[315109840,1708830641777,-500.0,0.00019452,2]
[315109841,1708830641787,-503.80757751,0.00019452,2]
[315109842,1708830641796,-1609.43,0.00019452,2]
[315109843,1708830641806,-500.0,0.00019452,2]
[315109845,1708830641815,-218.09564427,0.00019452,2]
[315109846,1708830641825,-500.0,0.00019452,2]
[315109848,1708830641835,-260.17021376,0.00019452,2]
[315109850,1708830641844,-500.0,0.00019452,2]
[315109852,1708830641854,-500.0,0.00019452,2]
[315109854,1708830641865,-501.89164218,0.00019452,2]
[315109856,1708830641874,-500.0,0.00019452,2]
[315109858,1708830641884,-500.0,0.00019452,2]
[315109859,1708830641893,-500.0,0.00019452,2]
[315109861,1708830641902,-500.0,0.00019452,2]
[315109863,1708830641912,-501.97,0.00019452,2]
[315109865,1708830641921,-500.0,0.00019452,2]
[315109867,1708830641930,-500.0,0.00019452,2]
[315109869,1708830641940,-500.0,0.00019452,2]
[315109871,1708830641949,-500.0,0.00019452,2]
[315109873,1708830641958,-500.0,0.00019452,2]
[315109874,1708830641968,-180.87318181,0.00019452,2]
[315109876,1708830641978,-500.0,0.00019452,2]
[315109878,1708830641988,-500.0,0.00019452,2]
[315109880,1708830641998,-507.5916589,0.00019452,2]
[315109882,1708830642007,-6004.66,0.00019452,2]
[315109884,1708830642019,-500.79353495,0.00019452,2]
[315109886,1708830642031,-710.89,0.00019452,2]
[315109888,1708830642043,-500.0,0.00019452,2]
[315109890,1708830642054,-500.0,0.00019452,2]
[315109892,1708830642065,-500.0,0.00019452,2]
[315109894,1708830642077,-500.0,0.00019452,2]
[315109896,1708830642086,-500.0,0.00019452,2]
[315109898,1708830642095,-429.25978851,0.00019452,2]
[315109900,1708830642104,-500.0,0.00019452,2]
[315109902,1708830642113,-2742.19,0.00019452,2]
[315109904,1708830642123,-500.0,0.00019452,2]
[315109906,1708830642133,-500.0,0.00019452,2]
[315109908,1708830642142,-500.0,0.00019452,2]
[315109910,1708830642151,-847.94,0.00019452,2]
[315109912,1708830642160,-500.0,0.00019452,2]
[315109914,1708830642169,-500.0,0.00019452,2]
[315109916,1708830642178,-650.34,0.00019452,2]
[315109918,1708830642187,-3905.99,0.00019452,2]
[315109920,1708830642196,-265.34682252,0.00019452,2]
[315109921,1708830642206,-1282.91,0.00019452,2]
[315109923,1708830642215,-500.0,0.00019461,2]
[315109925,1708830642224,-178.0676437,0.00019489,2]
[315109927,1708830642233,-153.0,0.000195,2]
[315109929,1708830642243,-500.0,0.00019516,2]
[315109931,1708830642253,-500.0,0.0001957,2]
[315109933,1708830642263,-500.0,0.00019625,2]
[315109935,1708830642272,-166.666666,0.00019627,2]
[315109937,1708830642284,-500.0,0.0001968,2]
[315109939,1708830642294,-178.0676437,0.00019695,2]
[315109941,1708830642305,-506.68,0.00019725,2]
[315109943,1708830642315,-506.68,0.00019725,2]
[315109945,1708830642326,-506.68,0.00019725,2]
[315109947,1708830642335,-500.0,0.00019726,2]
[315109949,1708830642344,-500.0,0.00019726,2]
[315109951,1708830642354,-500.0,0.00019726,2]
[315109953,1708830642363,-500.0,0.00019726,2]
[315109955,1708830642374,-515.10536909,0.00019726,2]
[315109956,1708830642384,-398.01647975,0.00019726,2]
[315109958,1708830642397,-293.74963848,0.00019726,2]
[315109960,1708830642408,-832.26,0.00019726,2]
[315109962,1708830642419,-500.0,0.00019726,2]
[315109964,1708830642430,-728.52,0.00019726,2]
[315109966,1708830642440,-1765.36,0.00019726,2]
[315109968,1708830642449,-500.0,0.00019726,2]
[315109970,1708830642458,-201.73137709,0.00019726,2]
[315109972,1708830642467,-500.0,0.00019726,2]
[315109974,1708830642477,-500.0,0.00019726,2]
[315109976,1708830642486,-586.84,0.00019726,2]
[315109978,1708830642496,-606.01698324,0.00019726,2]
[315109980,1708830642506,-500.0,0.00019726,2]
[315109982,1708830642515,-500.0,0.00019726,2]
[315109984,1708830642525,-500.0,0.00019726,2]
[315109986,1708830642535,-500.0,0.00019726,2]
[315109988,1708830642545,-503.7945733,0.00019726,2]
[315109990,1708830642556,-500.0,0.00019726,2]
[315109992,1708830642567,-500.0,0.00019726,2]
[315109994,1708830642577,-500.0,0.00019726,2]
[315109996,1708830642588,-809.54,0.00019726,2]
[315109997,1708830642598,-500.0,0.00019726,2]
[315109999,1708830642608,-500.0,0.00019726,2]
[315110001,1708830642619,-500.0,0.00019726,2]
[315110013,1708830642724,-500.0,0.00019726,2]
[315110015,1708830642733,-500.0,0.00019726,2]
[315110017,1708830642743,-2198.37,0.00019726,2]
[315110019,1708830642753,-500.0,0.00019726,2]
[315110021,1708830642763,-500.0,0.00019726,2]
[315110023,1708830642773,-1070.78,0.00019726,2]
[315110025,1708830642784,-2051.23,0.00019726,2]
[315110027,1708830642793,-501.64163409,0.00019726,2]
[315110029,1708830642803,-500.0,0.00019726,2]
[315110031,1708830642814,-500.0,0.00019726,2]
[315110033,1708830642824,-282.6196593,0.00019726,2]
[315110035,1708830642833,-500.0,0.00019726,2]
[315110036,1708830642843,-1186.34,0.00019726,2]
[315110038,1708830642852,-500.0,0.00019726,2]
[315110040,1708830642862,-235.92111708,0.00019726,2]
[315110042,1708830642871,-500.0,0.00019726,2]
[315110043,1708830642881,-6753.06,0.00019726,2]
[315110045,1708830642891,-453.68520045,0.00019726,2]
[315110047,1708830642900,-502.15746347,0.00019726,2]
[315110049,1708830642910,-1862.38,0.00019726,2]
[315110051,1708830642920,-500.0,0.00019726,2]
[315110053,1708830642930,-1064.96,0.00019726,2]
[315110055,1708830642939,-1457.52,0.00019726,2]
[315110057,1708830642948,-1391.79,0.00019726,2]
[315110059,1708830642958,-1090.06,0.00019726,2]
[315110061,1708830642967,-500.0,0.00019726,2]
[315110063,1708830642976,-500.0,0.00019726,2]
[315110065,1708830642985,-1774.35,0.00019726,2]
[315110067,1708830642994,-500.0,0.00019726,2]
[315110069,1708830643004,-183.33184604,0.00019726,2]
[315110071,1708830643013,-500.0,0.00019726,2]
[315110073,1708830643022,-589.2876803,0.00019726,2]
[315110075,1708830643034,-8709.57,0.00019726,2]
[315110077,1708830643042,-539.4,0.00019726,2]
[315110079,1708830643051,-550.60893937,0.00019726,2]
[315110081,1708830643061,-500.0,0.00019726,2]
[315110083,1708830643070,-1288.87,0.00019726,2]
[315110085,1708830643078,-500.0,0.00019726,2]
[315110087,1708830643087,-500.0,0.00019726,2]
[315110089,1708830643097,-2151.98,0.00019726,2]
[315110091,1708830643108,-1197.32,0.00019726,2]
[315110093,1708830643117,-10740.27,0.00019726,2]
[315110095,1708830643126,-500.0,0.00019726,2]
[315110097,1708830643135,-500.0,0.00019726,2]
[315110099,1708830643144,-500.0,0.00019726,2]
[315110101,1708830643153,-500.0,0.00019726,2]
[315110103,1708830643163,-1609.43,0.00019726,2]
[315110105,1708830643172,-494.77754514,0.00019726,2]
[315110107,1708830643182,-500.0,0.00019726,2]
[315110109,1708830643191,-500.0,0.00019726,2]
[315110112,1708830643200,-500.0,0.00019726,2]
[315110114,1708830643210,-500.0,0.00019726,2]
[315110117,1708830643219,-500.0,0.00019726,2]
[315110119,1708830643228,-500.0,0.00019726,2]
[315110121,1708830643237,-500.0,0.00019726,2]
[315110125,1708830643246,-501.97,0.00019726,2]
[315110128,1708830643255,-503.53851575,0.00019726,2]
[315110132,1708830643264,-500.0,0.00019726,2]
[315110136,1708830643273,-503.76918573,0.00019726,2]
[315110141,1708830643282,-500.0,0.00019726,2]
[315110144,1708830643291,-502.81502329,0.00019726,2]
[315110146,1708830643300,-503.24725296,0.00019726,2]
[315110148,1708830643309,-500.0,0.00019726,2]
[315110150,1708830643319,-6004.66,0.00019726,2]
[315110152,1708830643328,-710.89,0.00019726,2]
[315110154,1708830643337,-500.0,0.00019726,2]
[315110156,1708830643346,-500.0,0.00019726,2]
[315110158,1708830643355,-504.64072621,0.00019726,2]
[315110160,1708830643365,-248.03889364,0.00019726,2]
[315110162,1708830643377,-503.11105513,0.00019726,2]
[315110163,1708830643388,-500.0,0.00019726,2]
[315110164,1708830643399,-2742.19,0.00019726,2]
[315110165,1708830643408,-500.0,0.00019726,2]
[315110166,1708830643418,-500.0,0.00019726,2]
[315110168,1708830643427,-501.43627415,0.00019726,2]
[315110169,1708830643437,-847.94,0.00019726,2]
[315110171,1708830643445,-500.0,0.00019726,2]
[315110173,1708830643454,-500.0,0.00019726,2]
[315110174,1708830643464,-650.34,0.00019726,2]
[315110176,1708830643473,-3905.99,0.00019726,2]
[315110178,1708830643483,-1282.91,0.00019726,2]
[315110180,1708830643492,-500.0,0.00019735,2]
[315110182,1708830643502,-200.5294442,0.00019781,2]
[315110183,1708830643512,-271.12998174,0.0001979,2]
[315110185,1708830643521,-2136.39601113,0.000199,2]
[315110187,1708830643530,-178.0676437,0.000199,2]
[315110189,1708830643539,-153.0,0.00019918,2]
[315110191,1708830643548,-153.0,0.00019918,2]
[315110193,1708830643558,-198.0348,0.00019918,2]
[315110195,1708830643568,-153.0,0.00019918,2]
[315110197,1708830643578,-153.0,0.00019918,2]
[315110199,1708830643587,-153.0,0.00019918,2]
[315110201,1708830643596,-153.0,0.00019918,2]
[315110203,1708830643605,-506.68,0.00019961,2]
[315110205,1708830643615,-317.61983637,0.00019998,2]
[315110207,1708830643624,-1266.7840824,0.00019998,2]
[315110209,1708830643633,-274.37951668,0.00019998,2]
[315110211,1708830643642,-155.6061696,0.00019998,2]
[315110213,1708830643651,-745.13367533,0.00019998,2]
[315110215,1708830643660,-1301.33893339,0.00019999,2]
[315110217,1708830643670,-506.68,0.00019999,2]
[315110219,1708830643679,-506.68,0.00019999,2]
[315110221,1708830643688,-506.68,0.00019999,2]
[315110223,1708830643697,-506.68,0.00019999,2]
[315110225,1708830643707,-506.68,0.00019999,2]
[315110227,1708830643716,-506.76272049,0.00019999,2]
[315110229,1708830643725,-194.77953548,0.00019999,2]
[315110232,1708830643735,-152.54905509,0.00019999,2]
[315110234,1708830643744,-920163.83829169,0.0002,2]
[315110236,1708830643760,-6680.43673504,0.0002,2]
[315110265,1708830644029,182.74381581,0.000189,2]
[315110274,1708830644099,-338.98049944,0.0002,2]
[315110276,1708830644110,-400.0,0.0002,2]
[315110400,1708830768831,227.066744,0.00018655,2]
[315110404,1708831242217,456.66589261,0.000189,2]
[315110405,1708831341484,19091.5819992,0.00018175,2]
[315110406,1708831358674,812.421878,0.00018175,2]
[315110408,1708831635114,-154.78330338,0.00019167,2]
[315110409,1708831635134,-234.6,0.00019168,3]
[315110410,1708831635153,-110.61669662,0.00019168,3]
[315110411,1708831679095,261.24428896,0.00019,2]
[315110412,1708831697110,261.24428896,0.00019,2]
[315110414,1708831728261,261.24428896,0.00019,2]
[315110416,1708831748253,261.24428896,0.00019,2]
[315110417,1708831766296,261.24428896,0.00019,2]
[315110418,1708831784273,261.24428896,0.00019,2]
[315110419,1708831806254,261.24428896,0.00019,2]
[315110420,1708831822256,261.24428896,0.00019,2]
[315110522,1708831838315,308.61391424,0.00019,2]
[315110621,1708831841012,-177.06,0.00019168,3]
[315110622,1708831841021,-154.79876161,0.00019174,2]
[315110623,1708831841031,-500.000001,0.00019175,2]
[315110624,1708831841041,-345.12390088,0.00019176,2]
[315110625,1708831841050,-154.87609912,0.00019176,2]
[315110626,1708831841060,-500.0,0.00019177,2]
[315110627,1708831841070,-300.0,0.00019177,2]
[315110628,1708831841079,-498.21081952,0.00019178,2]
[315110629,1708831841089,-171.64068098,0.00019178,2]
[315110630,1708831841197,-329.04772242,0.00019178,2]
[315110631,1708831841207,-500.0,0.00019178,2]
[315110632,1708831841216,-500.72362543,0.00019178,2]
[315110633,1708831841225,-500.0,0.00019178,2]
[315110634,1708831841234,-473.89689057,0.00019178,2]
[315110635,1708831841243,-403.96917121,0.00019178,2]
[315110636,1708831841254,-500.0,0.00019178,2]
[315110637,1708831841263,-500.0,0.00019178,2]
[315110638,1708831841272,-182.76465336,0.00019178,2]
[315110639,1708831841283,-500.0,0.00019178,2]
[315110640,1708831841292,-500.0,0.00019178,2]
[315110641,1708831841301,-399.61868659,0.00019178,2]
[315110642,1708831841311,-254.5571896,0.00019178,2]
[315110643,1708831841321,-500.0,0.00019178,2]
[315110644,1708831841331,-708.35,0.00019178,2]
[315110645,1708831841340,-504.44208743,0.00019178,2]
[315110646,1708831841349,-571.82653924,0.00019178,2]
[315110647,1708831841358,-408.53985031,0.00019178,2]
[315110648,1708831841488,-500.0,0.00019178,2]
[315110649,1708831841498,-500.0,0.00019178,2]
[315110650,1708831841508,-1544.69,0.00019178,2]
[315110651,1708831841517,-500.0,0.00019178,2]
[315110652,1708831841526,-500.0,0.00019178,2]
[315110653,1708831841535,-500.0,0.00019178,2]
[315110654,1708831841544,-500.30920183,0.00019178,2]
[315110655,1708831841554,-500.0,0.00019178,2]
[315110656,1708831841563,-151.0,0.00019178,2]
[315110657,1708831841572,-500.0,0.00019178,2]
[315110658,1708831841581,-456.86002755,0.00019178,2]
[315110671,1708831843564,304.44392841,0.000189,2]
[315110685,1708831973658,2979.87270308,0.000189,2]
[315110686,1708831989658,2483.22725257,0.000189,2]
[315110687,1708832002857,2483.22725257,0.000189,2]
[315110688,1708832026725,1293.76139859,0.000189,2]
[315110689,1708832046716,1293.76139859,0.000189,2]
[315110691,1708832347213,24900.0,0.00018309,2]
[315110692,1708832381815,-743.86286849,0.00019176,2]
[315110693,1708832381838,-2716.22441252,0.00019176,2]
[315110694,1708832381861,-189.41793501,0.00019177,2]
[315110695,1708832381886,-500.0,0.00019177,2]
[315110696,1708832381909,-500.0,0.00019178,2]
[315110697,1708832381933,-500.0,0.00019178,2]
[315110698,1708832381956,-401.01611644,0.00019178,2]
[315110699,1708832381981,-500.0,0.00019178,2]